fUSD/lending_fUSD_20260205
["ID","MTS","AMOUNT","RATE_DAILY","PERIOD"]
[404552583,1770282640112,-391.0,0.00014694,2]
[404552584,1770282640123,-192.18,0.00014708,2]
[404552585,1770282640132,-2548.640706,0.00014713,2]
[404552586,1770282640141,-152.0,0.00014892,3]
[404552587,1770282640152,-29759.72262329,0.00015,2]
[404552589,1770282640161,-418.21759378,0.00015,2]
[404552590,1770282640171,-250.0,0.00015,2]
[404552591,1770282640180,-1506.0,0.00015,2]
[404552592,1770282640190,-7758.03941337,0.0001504,2]
[404552593,1770282640200,-1991.02,0.00015068,2]
[404552594,1770282640210,-450.32,0.00015068,2]
[404552595,1770282640219,-1000.0,0.00015148,2]
[404552596,1770282640229,-1000.0,0.00015148,2]
[404552597,1770282640239,-500.0,0.00015148,2]
[404552598,1770282640248,-347.37162909,0.00015148,2]
[404552599,1770282640258,-2548.640706,0.00015244,2]
[404552600,1770282640268,-192.18,0.00015273,2]
[404552601,1770282640278,-519.49,0.00015299,2]
[404552602,1770282640289,-1517.64,0.000153,2]
[404552603,1770282640299,-1000.0,0.00015329,2]
[404552604,1770282640309,-1560.32,0.0001533,2]
[404552605,1770282640319,-508.83519453,0.000154,2]
[404552606,1770282640330,-277.19,0.00015446,2]
[404552607,1770282640339,-500.0,0.00015489,2]
[404552608,1770282640348,-7758.03941337,0.00015612,2]
[404552609,1770282640358,-1500.0,0.00015696,2]
[404552610,1770282640367,-1004.24108191,0.00015696,2]
[404552611,1770282640377,-152.05768541,0.00015736,2]
[404552612,1770282640387,-1991.02,0.00015753,2]
[404552613,1770282640397,-532.0,0.0001576,2]
[404552614,1770282640406,-2548.640706,0.00015775,2]
[404552615,1770282640416,-2046.60264728,0.00015807,2]
[404552616,1770282640427,-152.93,0.00015875,2]
[404552617,1770282640436,-166.57,0.00015875,2]
[404552618,1770282640446,-197.54,0.00015918,2]
[404552619,1770282640456,-166.55,0.00015951,2]
[404552620,1770282640466,-951.124593,0.00015989,7]
[404552621,1770282640475,-957.19260386,0.00016,2]
[404552622,1770282640485,-320.47368523,0.00016,2]
[404552623,1770282640494,-5956.53345956,0.00016,2]
[404552624,1770282640504,-152.93,0.00016069,2]
[404552625,1770282640513,-2881.98798841,0.00016127,2]
[404552626,1770282640523,-166.57,0.00016142,2]
[404552627,1770282640533,-7758.03941337,0.00016184,2]
[404552628,1770282640543,-151.0,0.00016185,2]
[404552629,1770282640553,-267.0,0.00016188,2]
[404552630,1770282640562,-151.0,0.00016188,2]
[404552631,1770282640572,-200.0,0.00016188,2]
[404552632,1770282640581,-196.23,0.00016188,2]
[404552633,1770282640590,-229.28,0.00016188,2]
[404552634,1770282640600,-277.537,0.00016188,2]
[404552635,1770282640609,-179.178,0.00016188,2]
[404552636,1770282640619,-158.945,0.00016188,2]
[404552637,1770282640628,-250.0,0.00016188,2]
[404552638,1770282640638,-191.693,0.00016188,2]
[404552639,1770282640648,-164.442,0.00016188,2]
[404552640,1770282640657,-212.815,0.00016188,2]
[404552641,1770282640667,-250.0,0.00016188,2]
[404552642,1770282640676,-171.0,0.00016188,2]
[404552643,1770282640686,-232.419,0.00016188,2]
[404552644,1770282640695,-3491.028,0.00016188,2]
[404552645,1770282640705,-616.445,0.00016188,2]
[404552646,1770282640714,-1335.0,0.00016188,2]
[404552647,1770282640723,-1411.0,0.00016188,2]
[404552648,1770282640733,-1271.0,0.00016188,2]
[404552649,1770282640743,-150.0,0.00016188,2]
[404552650,1770282640752,-917.0,0.00016188,2]
[404552651,1770282640762,-1205.0,0.00016188,2]
[404552652,1770282640771,-6581.0,0.00016188,2]
[404552653,1770282640780,-1317.0,0.00016188,2]
[404552654,1770282640791,-2466.995,0.00016188,2]
[404552655,1770282640800,-3254.0,0.00016188,2]
[404552656,1770282640810,-152.93,0.00016217,2]
[404552657,1770282640820,-1291.24412758,0.00016244,2]
[404552658,1770282640830,-152.93,0.00016274,2]
[404552659,1770282640840,-166.57,0.00016275,2]
[404552660,1770282640850,-2548.640706,0.00016307,2]
[404552661,1770282640859,-152.0,0.0001631,4]
[404552662,1770282640869,-152.05768541,0.00016342,2]
[404552663,1770282640882,-1991.02,0.00016438,2]
[404552664,1770282640892,-1000.0,0.00016438,2]
[404552665,1770282640902,-450.32,0.00016438,2]
[404552666,1770282640912,-743.50770149,0.0001659,2]
[404552667,1770282640923,-174.61919141,0.0001659,2]
[404552668,1770282640933,-2000.0,0.0001659,2]
[404552669,1770282640942,-250.0,0.0001659,2]
[404552670,1770282640953,-2000.0,0.0001659,2]
[404552671,1770282640963,-250.0,0.0001659,2]
[404552672,1770282640972,-2000.0,0.0001659,2]
[404552673,1770282640982,-578.20924308,0.0001659,2]
[404552674,1770282640992,-250.0,0.0001659,2]
[404552675,1770282641001,-2000.0,0.0001659,2]
[404552676,1770282641011,-250.0,0.0001659,2]
[404552677,1770282641020,-2000.0,0.0001659,2]
[404552678,1770282641030,-250.0,0.0001659,2]
[404552679,1770282641043,-2000.0,0.0001659,2]
[404552680,1770282641052,-250.0,0.0001659,2]
[404552681,1770282641062,-2000.0,0.0001659,2]
[404552682,1770282641072,-1508.30623238,0.0001659,2]
[404552683,1770282641081,-250.0,0.0001659,2]
[404552684,1770282641091,-228.82569288,0.0001659,2]
[404552685,1770282641101,-500.0,0.0001659,2]
[404552686,1770282641110,-500.0,0.0001659,2]
[404552687,1770282641119,-500.0,0.0001659,2]
[404552688,1770282641128,-500.0,0.0001659,2]
[404552689,1770282641137,-500.0,0.0001659,2]
[404552690,1770282641146,-500.0,0.0001659,2]
[404552691,1770282641156,-500.0,0.0001659,2]
[404552692,1770282641165,-216.07161542,0.0001659,2]
[404552693,1770282641174,-209.40437684,0.0001659,2]
[404552694,1770282641184,-1449.10348087,0.0001659,2]
[404552695,1770282641194,-322.6107,0.0001659,2]
[404552696,1770282641203,-217.15233878,0.00016645,2]
[404552697,1770282641212,-225.18697532,0.000167,2]
[404552698,1770282641221,-1000.0,0.00016712,2]
[404552699,1770282641231,-165.83,0.00016712,2]
[404552700,1770282641241,-233.51889341,0.00016755,2]
[404552701,1770282641251,-7758.03941337,0.00016756,2]
[404552702,1770282641261,-773.71,0.000168,2]
[404552703,1770282641271,-242.15909246,0.0001681,2]
[404552704,1770282641281,-2548.640706,0.00016838,2]
[404552705,1770282641294,-277.19,0.0001684,2]
[404552706,1770282641304,-251.11897888,0.00016865,2]
[404552707,1770282641313,-260.4103811,0.0001692,2]
[404552708,1770282641323,-152.05768541,0.00016947,2]
[404552709,1770282641333,-270.0455652,0.00016975,2]
[404552710,1770282641343,-423.0,0.00016984,2]
[404552711,1770282641352,-1000.0,0.00016986,2]
[404552712,1770282641361,-423.0,0.00016995,2]
[404552713,1770282641371,-300.0,0.00017,2]
[404552714,1770282641380,-280.03725112,0.0001703,2]
[404552715,1770282641390,-290.39862941,0.00017085,2]
[404552716,1770282641400,-209.98794847,0.00017138,2]
[404552717,1770282641410,-181.08010149,0.00017138,2]
[404552718,1770282641419,-301.1433787,0.0001714,2]
[404552719,1770282641429,-1966.438,0.00017185,2]
[404552720,1770282641441,-150.325,0.00017185,2]
[404552721,1770282641451,-423.0,0.00017189,2]
[404552722,1770282641460,-423.0,0.0001719,2]
[404552723,1770282641469,-391.0,0.00017237,2]
[404552724,1770282641479,-519.49,0.0001726,2]
[404552725,1770282641490,-1000.0,0.0001726,2]
[404552726,1770282641500,-423.0,0.00017262,2]
[404552727,1770282641509,-423.0,0.00017325,2]
[404552728,1770282641518,-7758.03941337,0.00017328,2]
[404552729,1770282641527,-423.0,0.00017345,2]
[404552730,1770282641538,-391.0,0.00017352,2]
[404552731,1770282641547,-2548.640706,0.00017369,2]
[404552732,1770282641556,-4800.0,0.00017452,2]
[404552733,1770282641566,-423.0,0.00017477,2]
[404552734,1770282641576,-1000.0,0.00017523,2]
[404552735,1770282641585,-1000.0,0.00017523,2]
[404552736,1770282641595,-1000.0,0.00017523,2]
[404552737,1770282641605,-1000.0,0.00017523,2]
[404552738,1770282641614,-1000.0,0.00017523,2]
[404552739,1770282641623,-1000.0,0.00017523,2]
[404552740,1770282641632,-1000.0,0.00017523,2]
[404552741,1770282641642,-1000.0,0.00017523,2]
[404552742,1770282641651,-1000.0,0.00017523,2]
[404552743,1770282641662,-1000.0,0.00017523,2]
[404552744,1770282641671,-1000.0,0.00017523,2]
[404552745,1770282641680,-506.851,0.00017523,2]
[404552746,1770282641689,-1000.0,0.00017534,2]
[404552747,1770282641699,-152.05768541,0.00017552,2]
[404552748,1770282641709,-423.0,0.00017553,2]
[404552749,1770282641718,-423.0,0.00017609,2]
[404552750,1770282641727,-391.0,0.00017612,2]
[404552751,1770282641737,-423.0,0.00017612,2]
[404552752,1770282641747,-187.78006525,0.00017686,2]
[404552753,1770282641756,-152.0,0.00017728,5]
[404552754,1770282641766,-1000.0,0.00017808,2]
[404552755,1770282641776,-500.0,0.00017856,2]
[404552756,1770282641786,-500.0,0.00017856,2]
[404552757,1770282641796,-160.0,0.000179,3]
[404552758,1770282641806,-9068.51831638,0.000179,3]
[404552759,1770282641815,-7758.03941337,0.000179,2]
[404552760,1770282641824,-2548.640706,0.000179,2]
[404552761,1770282641834,-25000.0,0.000179,3]
[404552762,1770282641843,-1066.21775424,0.000179,3]
[404552763,1770282641854,-8707.33655551,0.000179,2]
[404552764,1770282641863,-329.93056916,0.000179,2]
[404552765,1770282641874,-9689.9061987,0.000179,2]
[404552766,1770282641887,-25571.81576767,0.000179,2]
[404552767,1770282641897,-45111.71413833,0.000179,2]
[404552768,1770282641907,-67484.42639653,0.000179,2]
[404552769,1770282641918,-91308.8286,0.000179,2]
[404552770,1770282641927,-1000.0,0.00017951,2]
[404552771,1770282641938,-256.366,0.00017951,2]
[404552772,1770282641948,-334.5472959,0.00017959,2]
[404552773,1770282641960,-1101.54215647,0.0001797,2]
[404552774,1770282641971,-500.0,0.00017973,2]
[404552775,1770282641980,-500.0,0.00017973,2]
[404552776,1770282641990,-500.0,0.00017973,2]
[404552777,1770282642000,-500.0,0.00017973,2]
[404552778,1770282642010,-309.44398841,0.00017973,2]
[404552779,1770282642020,-500.0,0.00017973,2]
[404552780,1770282642029,-500.0,0.00017973,2]
[404552781,1770282642040,-500.0,0.00017973,2]
[404552782,1770282642050,-500.0,0.00017973,2]
[404552783,1770282642059,-500.0,0.00017973,2]
[404552784,1770282642069,-561.5530591,0.00017973,2]
[404552785,1770282642079,-500.0,0.00017973,2]
[404552786,1770282642088,-500.0,0.00017973,2]
[404552787,1770282642099,-500.0,0.00017973,2]
[404552788,1770282642108,-500.0,0.00017973,2]
[404552789,1770282642118,-500.0,0.00017973,2]
[404552790,1770282642128,-500.0,0.00017973,2]
[404552791,1770282642137,-500.0,0.00017973,2]
[404552792,1770282642147,-520.97702983,0.00017973,2]
[404552793,1770282642156,-500.0,0.00017973,2]
[404552794,1770282642165,-500.0,0.00017973,2]
[404552795,1770282642175,-500.0,0.00017973,2]
[404552796,1770282642185,-160.11845722,0.00017973,2]
[404552797,1770282642196,-500.0,0.00017973,2]
[404552798,1770282642206,-500.0,0.00017973,2]
[404552799,1770282642216,-500.0,0.00017973,2]
[404552800,1770282642225,-500.0,0.00017973,2]
[404552801,1770282642235,-500.0,0.00017973,2]
[404552802,1770282642245,-500.0,0.00017973,2]
[404552803,1770282642255,-500.0,0.00017973,2]
[404552804,1770282642264,-500.0,0.00017973,2]
[404552805,1770282642275,-500.0,0.00017973,2]
[404552806,1770282642284,-502.08032841,0.00017973,2]
[404552807,1770282642295,-500.0,0.00017973,2]
[404552808,1770282642306,-500.0,0.00017973,2]
[404552809,1770282642317,-500.0,0.00017973,2]
[404552810,1770282642326,-500.0,0.00017973,2]
[404552811,1770282642336,-500.0,0.00017973,2]
[404552812,1770282642346,-500.0,0.00017973,2]
[404552813,1770282642355,-262.39107038,0.00017973,2]
[404552814,1770282642365,-500.0,0.00017973,2]
[404552815,1770282642375,-500.0,0.00017973,2]
[404552816,1770282642384,-500.0,0.00017973,2]
[404552817,1770282642394,-201.3953049,0.00017973,2]
[404552818,1770282642404,-519.49,0.00017989,2]
[404552819,1770282642414,-33863.48319073,0.0001799,3]
[404552820,1770282642424,-151.0,0.00017997,2]
[404552821,1770282642433,-150.0,0.00017999,2]
[404552822,1770282642443,-252.01216033,0.00017999,2]
[404552823,1770282642453,-1056.82244701,0.00017999,5]
[404552824,1770282642463,-300.0,0.00017999,2]
[404552825,1770282642473,-300.0,0.00017999,2]
[404552826,1770282642483,-1010.8044,0.00017999,2]
[404552827,1770282642493,-519.49,0.00017999,2]
[404552828,1770282642503,-519.49,0.00017999,2]
[404552829,1770282642514,-519.49,0.00017999,2]
[404552830,1770282642524,-519.49,0.00017999,2]
[404552831,1770282642533,-519.49,0.00017999,2]
[404552832,1770282642545,-519.49,0.00017999,2]
[404552834,1770282642555,-519.49,0.00017999,2]
[404552835,1770282642564,-519.49,0.00017999,2]
[404552836,1770282642574,-519.49,0.00017999,2]
[404552837,1770282642583,-519.53,0.00017999,2]
[404552838,1770282642592,-300.0,0.00017999,2]
[404552839,1770282642602,-300.0,0.00017999,2]
[404552840,1770282642611,-666.0,0.00017999,2]
[404552841,1770282642620,-300.0,0.00017999,2]
[404552842,1770282642629,-666.0,0.00017999,2]
[404552843,1770282642639,-300.0,0.00017999,2]
[404552844,1770282642648,-6662860.57453622,0.00018,2]
[404552846,1770282642667,-394.22871519,0.00018,2]
[404552847,1770282642679,-556.58377364,0.00018,2]
[404552848,1770282642690,-840.8243908,0.00018,2]
[404552849,1770282642703,-1621.15000445,0.00018,2]
[404552850,1770282642714,-4264.09911204,0.00018,2]
[404552851,1770282642726,-374.10410906,0.00018,2]
[404552852,1770282642738,-497.12974831,0.00018,2]
[404552853,1770282642750,-4668.06595508,0.00018,2]
[404552865,1770282643384,-261.73642073,0.000153,2]
[404552866,1770282643395,-151.0,0.00015329,2]
[404552867,1770282643405,-3718.98746007,0.000178,2]
[404552868,1770282643438,-15569.53945016,0.000178,2]
[404552869,1770282643448,-2972.46054984,0.00018,2]
[404552870,1770282644134,-2343.68669856,0.00018,2]
[404552871,1770282644146,-1712.46908473,0.00018,2]
[404552872,1770282644190,-2118.0,0.00018,2]
[404552881,1770282645891,-300.0,0.00018,2]
[404552882,1770282646002,-1434.61950838,0.00018,2]
[404552883,1770282646013,-406.02414376,0.00018,2]
[404552884,1770282646056,-629.8598895,0.00018,2]
[404552885,1770282646165,-735.79705235,0.00018,2]
[404552886,1770282646221,-608.21731146,0.00018,2]
[404552915,1770283580555,170.44699738,0.0002,120]
[404553635,1770283832230,-500.0,0.00011133,2]
[404553636,1770283832247,-195.0,0.00011183,2]
[404553637,1770283832258,-1142.45735707,0.00011233,2]
[404553638,1770283832278,-6.68264293,0.00011233,2]
[404553639,1770283832293,-905.09020248,0.00011946,2]
[404553640,1770283832305,-999.0,0.00011946,2]
[404553641,1770283832322,-847.25477473,0.00011946,2]
[404553642,1770283832334,-280.0,0.00011946,2]
[404553643,1770283832346,-411.21869039,0.00011946,2]
[404553644,1770283832358,-1078.91753198,0.00011946,2]
[404553651,1770283838060,-1110.68474208,0.00011946,2]
[404553654,1770283838223,-11727.50827752,0.00011946,2]
[404553655,1770283838233,-2548.64070605,0.00011946,2]
[404553656,1770283838243,-300.0,0.00012035,2]
[404553657,1770283838255,-1200.0,0.00012035,2]
[404553658,1770283838265,-300.0,0.00012035,2]
[404553659,1770283838275,-300.0,0.00012035,2]
[404553660,1770283838285,-300.0,0.00012035,2]
[404553661,1770283838296,-500.0,0.00012035,2]
[404553662,1770283838306,-535.63864712,0.00012035,2]
[404553663,1770283838316,-500.0,0.00012035,2]
[404553664,1770283838326,-379.10110564,0.00012035,2]
[404553665,1770283838336,-298.44652159,0.00012035,2]
[404553666,1770283838348,-201.55347841,0.00012035,2]
[404553667,1770283838357,-500.0,0.00012035,2]
[404553668,1770283838367,-500.0,0.00012035,2]
[404553669,1770283838377,-285.95268371,0.00012035,2]
[404553670,1770283838387,-500.0,0.00012035,2]
[404553671,1770283838397,-500.0,0.00012035,2]
[404553672,1770283838407,-500.0,0.00012035,2]
[404553673,1770283838416,-328.73383788,0.00012035,2]
[404553676,1770283838428,-171.26616212,0.00012035,2]
[404553678,1770283838438,-198.3201787,0.00012035,2]
[404553680,1770283838447,-500.0,0.00012035,2]
[404553681,1770283838457,-140.0919225,0.00012035,2]
[404553687,1770283840142,-359.9080775,0.00012035,2]
[404553688,1770283840151,-500.0,0.00012035,2]
[404553689,1770283840161,-500.0,0.00012035,2]
[404553690,1770283840171,-500.0,0.00012035,2]
[404553691,1770283840183,-500.0,0.00012035,2]
[404553692,1770283840193,-67078.400927,0.00012036,2]
[404553693,1770283840206,-3432921.599073,0.00012036,2]
[404553694,1770283840216,-2997.62857567,0.00012046,2]
[404553695,1770283840226,-2500.0,0.00012046,2]
[404553696,1770283840235,-201.3953049,0.00012119,2]
[404553697,1770283840246,-3325.67071581,0.00012136,2]
[404553698,1770283840257,-151.0,0.00012143,2]
[404553699,1770283840267,-188.17333529,0.00012146,2]
[404553700,1770283840276,-2902.44551851,0.00012146,2]
[404553701,1770283840285,-5430.62758944,0.00012146,2]
[404553702,1770283840295,-250.24316891,0.00012246,2]
[404553703,1770283840305,-195.0,0.00012246,2]
[404553704,1770283840315,-5000.0,0.00012246,2]
[404553705,1770283840324,-250.0,0.00012246,2]
[404553706,1770283840333,-150.0,0.00012523,2]
[404553707,1770283840343,-17359.67421916,0.00012608,2]
[404553708,1770283840352,-1000.0,0.00012752,2]
[404553709,1770283840361,-5430.62758935,0.00012785,2]
[404553710,1770283840370,-2548.640706,0.00012797,2]
[404553711,1770283840380,-17359.67421916,0.00013269,2]
[404553712,1770283840390,-5430.62758935,0.00013425,2]
[404553713,1770283840400,-2997.62857567,0.00013615,2]
[404553714,1770283840409,-150.0,0.00013622,2]
[404553716,1770283840419,-2548.640706,0.00013647,2]
[404553717,1770283840428,-3240.0,0.00013692,2]
[404553718,1770283840438,-150.99,0.00013692,2]
[404553719,1770283840447,-3307.45,0.00013692,2]
[404553720,1770283840457,-299.99,0.00013692,2]
[404553721,1770283840466,-999.99,0.00013692,2]
[404553723,1770283840475,-9999.99,0.00013692,2]
[404553725,1770283840485,-499.99,0.00013692,2]
[404553726,1770283840495,-1592.82,0.00013699,2]
[404553727,1770283840505,-17359.67421916,0.00013931,2]
[404553728,1770283840514,-5430.62758935,0.00014064,2]
[404553729,1770283840523,-1966.438,0.00014096,2]
[404553730,1770283840533,-150.325,0.00014096,2]
[404553731,1770283840543,-526.61,0.00014187,2]
[404553732,1770283840552,-500.0,0.00014187,2]
[404553733,1770283840562,-500.0,0.00014187,2]
[404553734,1770283840571,-500.0,0.00014187,2]
[404553735,1770283840581,-500.0,0.00014187,2]
[404553736,1770283840591,-568.64405241,0.00014187,2]
[404553737,1770283840600,-500.0,0.00014187,2]
[404553738,1770283840609,-500.0,0.00014187,2]
[404553740,1770283840619,-500.0,0.00014187,2]
[404553741,1770283840627,-500.0,0.00014187,2]
[404553742,1770283840636,-500.0,0.00014187,2]
[404553743,1770283840645,-500.0,0.00014187,2]
[404553744,1770283840654,-476.12446663,0.00014187,2]
[404553745,1770283840664,-151.0,0.00014187,2]
[404553746,1770283840673,-151.0,0.00014187,2]
[404553747,1770283840683,-151.0,0.00014187,2]
[404553748,1770283840692,-151.0,0.00014187,2]
[404553749,1770283840702,-151.0,0.00014187,2]
[404553750,1770283840711,-151.0,0.00014187,2]
[404553751,1770283840720,-151.0,0.00014187,2]
[404553752,1770283840729,-151.0,0.00014187,2]
[404553753,1770283840739,-151.0,0.00014187,2]
[404553754,1770283840748,-151.0,0.00014187,2]
[404553755,1770283840758,-167.75126277,0.00014187,2]
[404553756,1770283840770,-203.09655245,0.00014187,2]
[404553757,1770283840779,-1056.82244701,0.00014195,5]
[404553758,1770283840789,-351.5182,0.00014195,2]
[404553760,1770283840799,-500.0,0.00014195,2]
[404553761,1770283840809,-500.0,0.00014195,2]
[404553762,1770283840819,-500.0,0.00014195,2]
[404553763,1770283840828,-500.0,0.00014195,2]
[404553764,1770283840838,-500.0,0.00014195,2]
[404553765,1770283840848,-500.0,0.00014195,2]
[404553766,1770283841070,-500.0,0.00014195,2]
[404553767,1770283841080,-500.0,0.00014195,2]
[404553768,1770283841089,-500.0,0.00014195,2]
[404553769,1770283841099,-500.0,0.00014195,2]
[404553770,1770283841109,-500.0,0.00014195,2]
[404553771,1770283841118,-500.0,0.00014195,2]
[404553772,1770283841128,-500.0,0.00014195,2]
[404553773,1770283841138,-253.41,0.00014195,2]
[404553774,1770283841147,-160.0,0.00014219,2]
[404553775,1770283841157,-221.75,0.00014334,2]
[404553776,1770283841167,-1592.82,0.00014384,2]
[404553777,1770283841177,-526.61,0.00014461,2]
[404553778,1770283841188,-2548.640706,0.00014498,2]
[404553779,1770283841197,-17359.67421916,0.00014592,2]
[404553780,1770283841207,-500.0,0.000146,2]
[404553781,1770283841217,-500.0,0.000146,2]
[404553782,1770283841226,-500.0,0.000146,2]
[404553783,1770283841235,-500.0,0.000146,2]
[404553784,1770283841245,-500.0,0.000146,2]
[404553785,1770283841256,-500.0,0.000146,2]
[404553786,1770283841266,-500.0,0.000146,2]
[404553787,1770283841275,-500.0,0.000146,2]
[404553788,1770283841284,-173.07272258,0.000146,2]
[404553789,1770283841293,-500.0,0.000146,2]
[404553790,1770283841302,-500.0,0.000146,2]
[404553791,1770283841312,-500.0,0.000146,2]
[404553792,1770283841322,-500.0,0.000146,2]
[404553793,1770283841331,-500.0,0.000146,2]
[404553794,1770283841340,-500.0,0.000146,2]
[404553795,1770283841349,-500.0,0.000146,2]
[404553796,1770283841359,-500.0,0.000146,2]
[404553797,1770283841369,-5430.62758935,0.00014703,2]
[404553798,1770283841379,-526.61,0.00014735,2]
[404553799,1770283841388,-250.0,0.00015,2]
[404553800,1770283841397,-29759.72262329,0.00015,2]
[404553801,1770283841406,-418.21759378,0.00015,2]
[404553802,1770283841416,-152.62,0.00015,2]
[404553803,1770283841425,-526.61,0.00015009,2]
[404553804,1770283841435,-2902.4455185,0.00015023,2]
[404553805,1770283841444,-1592.82,0.00015068,2]
[404553806,1770283841453,-1000.0,0.00015148,2]
[404553807,1770283841463,-1000.0,0.00015148,2]
[404553808,1770283841473,-500.0,0.00015148,2]
[404553809,1770283841482,-347.37162909,0.00015148,2]
[404553810,1770283841491,-2997.62857567,0.00015183,2]
[404553811,1770283841500,-17359.67421916,0.00015254,2]
[404553812,1770283841510,-526.61,0.00015283,2]
[404553813,1770283841519,-1517.64,0.000153,2]
[404553814,1770283841528,-9689.9061987,0.00015335,2]
[404553815,1770283841538,-25571.81576767,0.00015335,2]
[404553816,1770283841547,-45111.71413833,0.00015335,2]
[404553817,1770283841557,-5430.62758935,0.00015343,2]
[404553818,1770283841566,-508.83519453,0.000154,2]
[404553819,1770283841575,-526.61,0.00015557,2]
[404553820,1770283841585,-13616.0,0.000156,2]
[404553821,1770283841594,-1500.0,0.00015696,2]
[404553822,1770283841604,-1004.24108191,0.00015696,2]
[404553823,1770283841613,-152.05768541,0.00015719,2]
[404553824,1770283841622,-1592.82,0.00015753,2]
[404553825,1770283841632,-500.0,0.00015793,2]
[404553826,1770283841641,-2046.60264728,0.00015807,2]
[404553827,1770283841651,-526.61,0.00015831,2]
[404553828,1770283841661,-2181.71,0.00015979,2]
[404553829,1770283841671,-5430.62758935,0.00015982,2]
[404553830,1770283841681,-957.19260386,0.00016,2]
[404553831,1770283841691,-320.47368523,0.00016,2]
[404553832,1770283841701,-5956.53345956,0.00016,2]
[404553833,1770283841710,-526.61,0.00016105,2]
[404553834,1770283841719,-11901.47782727,0.000162,5]
[404553835,1770283841728,-1291.24412758,0.00016244,2]
[404553836,1770283841738,-152.05768541,0.00016324,2]
[404553837,1770283841747,-526.61,0.00016379,2]
[404553838,1770283841758,-1592.82,0.00016438,2]
[404553839,1770283841767,-5430.62758935,0.00016621,2]
[404553840,1770283841776,-526.61,0.00016653,2]
[404553841,1770283841786,-423.0,0.00016743,2]
[404553842,1770283841796,-423.0,0.00016749,2]
[404553843,1770283841807,-2997.62857567,0.00016752,2]
[404553844,1770283841816,-423.0,0.00016831,2]
[404553845,1770283841827,-423.0,0.00016907,2]
[404553846,1770283841836,-526.61,0.00016927,2]
[404553847,1770283841846,-152.05768541,0.00016929,2]
[404553848,1770283841855,-423.0,0.00016958,2]
[404553849,1770283841865,-150.0,0.00016988,2]
[404553850,1770283841874,-1271.0,0.00016988,2]
[404553851,1770283841883,-917.0,0.00016988,2]
[404553852,1770283841892,-1205.0,0.00016988,2]
[404553853,1770283841901,-3491.028,0.00016988,2]
[404553854,1770283841911,-1317.0,0.00016988,2]
[404553855,1770283841920,-2466.995,0.00016988,2]
[404553856,1770283841929,-1335.0,0.00016988,2]
[404553857,1770283841938,-423.0,0.00016999,2]
[404553858,1770283841947,-300.0,0.00017,2]
[404553859,1770283841956,-773.71,0.00017005,2]
[404553860,1770283841966,-536.0,0.0001704,2]
[404553861,1770283841975,-423.0,0.0001704,2]
[404553862,1770283841984,-322.6107,0.00017099,2]
[404553863,1770283841994,-1428.38747117,0.00017099,2]
[404553864,1770283842004,-250.0,0.00017099,2]
[404553865,1770283842013,-250.0,0.00017099,2]
[404553866,1770283842023,-250.0,0.00017099,2]
[404553867,1770283842032,-250.0,0.00017099,2]
[404553868,1770283842041,-250.0,0.00017099,2]
[404553869,1770283842051,-250.0,0.00017099,2]
[404553870,1770283842060,-250.0,0.00017099,2]
[404553871,1770283842069,-228.82569288,0.00017099,2]
[404553872,1770283842079,-2000.0,0.00017099,2]
[404553873,1770283842088,-174.61919141,0.00017099,2]